[Event "DVM U10 2024"]
[Site "Duesseldorf"]
[Date "2024.12.27"]
[Round "3"]
[White "Nune, Likhith Siddharth"]
[Black "White, William"]
[Result "0-1"]
[ECO "C58"]
[WhiteElo "1533"]
[BlackElo "1750"]
[Annotator "NA RC"]
[PlyCount "138"]
[EventDate "2024.12.23"]
[EventType "team-tourn"]
[EventRounds "7"]
[EventCountry "GER"]
[SourceTitle "playchess.com"]
[Source "ChessBase"]
[SourceQuality "1"]
[TimeControl "3300+5"]

1. e4 {[%emt 0:00:01]} e5 {[%emt 0:00:05]} 2. Nf3 {[%emt 0:00:06]} Nc6 {[%emt 0:00:06]} 3. Bc4 {[%emt 0:00:06]} Nf6 {[%emt 0:00:07]} 4. Ng5 {[%emt 0:00:31]} d5 {[%emt 0:00:07]} 5. exd5 {[%emt 0:00:15]} Na5 {[%emt 0:00:19]} 6. d3 {[%emt 0:01:07]} h6 {[%emt 0:10:39]} 7. Nf3 {[%emt 0:02:00]} e4 {[%emt 0:00:59]} 8. Nfd2 {[%emt 0:00:52]} exd3 {[%emt 0:00:24]} 9. cxd3 {[%emt 0:00:19]} Nxd5 {[%emt 0:00:56]} 10. O-O {[%emt 0:01:20]} Be7 {[%emt 0:01:54]} 11. Qf3 {[%emt 0:03:11]} Nf6 {[%emt 0:02:09]} 12. Nc3 {[%emt 0:01:07]} O-O {[%emt 0:01:43]} 13. Nde4 {[%emt 0:00:50]} Nc6 {[%emt 0:01:38]} 14. Be3 {[%emt 0:02:24]} a6 {[%emt 0:01:34]} 15. a4 {[%emt 0:00:56]} Nb4 {[%emt 0:01:11]} 16. Rfd1 {[%emt 0:03:34]} Kh8 {[%emt 0:01:23]} 17. Nxf6 {[%emt 0:03:46]} Bxf6 {[%emt 0:00:09]} 18. Qh5 {[%emt 0:00:52]} Kg8 {[%emt 0:03:41]} 19. Qf3 {[%emt 0:02:22]} c6 {[%emt 0:09:45]} 20. Rac1 {[%emt 0:01:50]} Bd7 {[%emt 0:03:37]} 21. d4 {[%emt 0:01:21]} Re8 {[%emt 0:07:12]} 22. b3 {[%emt 0:02:44]} b5 {[%emt 0:02:43]} 23. axb5 {[%emt 0:00:32]} axb5 {[%emt 0:00:03]} 24. Be2 {[%emt 0:01:11]} Be6 {[%emt 0:00:04]} 25. Rb1 {[%emt 0:00:34]} Nd5 {[%emt 0:01:06]} 26. Rdc1 {[%emt 0:01:27]} Qe7 {[%emt 0:01:25]} 27. Qg3 {[%emt 0:02:18]} Kh8 {[%emt 0:00:16]} 28. Bg4 {[%emt 0:01:19]} Nxc3 {[%emt 0:00:40]} 29. Rxc3 {[%emt 0:01:36]} Bd5 {[%emt 0:00:51]} 30. Rcc1 {[%emt 0:01:50]} Qb4 {[%emt 0:00:15]} 31. Qh3 {[%emt 0:01:32]} Bxd4 {[%emt 0:00:16]} 32. Re1 {[%emt 0:03:55]} Bxe3 {[%emt 0:00:03]} 33. Rxe3 {[%emt 0:00:17]} Re4 {[%emt 0:00:08]} 34. Bf5 {[%emt 0:01:13]} Rxe3 {[%emt 0:00:06]} 35. Qxe3 {[%emt 0:00:18]} Qd6 {[%emt 0:00:01]} 36. Qd3 {[%emt 0:02:13]} Rd8 {[%emt 0:00:05]} 37. Rd1 {[%emt 0:01:25]} Qe5 {[%emt 0:00:03]} 38. f3 {[%emt 0:00:12]} g6 {[%emt 0:00:04]} 39. Be4 {[%emt 0:00:07]} f5 {[%emt 0:00:06]} 40. Bxd5 {[%emt 0:00:03]} Qxd5 {[%emt 0:00:01]} 41. Qxd5 {[%emt 0:00:06]} cxd5 {[%emt 0:00:04]} 42. Kf2 {[%emt 0:00:04]} Kg7 {[%emt 0:00:01]} 43. Ke3 {[%emt 0:00:00]} Kf6 {[%emt 0:00:01]} 44. Kd4 {[%emt 0:00:02]} Ke6 {[%emt 0:00:03]} 45. Re1+ {[%emt 0:00:02]} Kd6 {[%emt 0:00:01]} 46. Re5 {[%emt 0:00:06]} Rc8 {[%emt 0:00:27]} 47. Rxd5+ {[%emt 0:00:05]} Kc6 {[%emt 0:00:03]} 48. Rc5+ {[%emt 0:00:04]} Kd7 {[%emt 0:00:03]} 49. Rxc8 {[%emt 0:00:02]} Kxc8 {[%emt 0:00:01]} 50. Kc5 {[%emt 0:00:01]} Kb7 {[%emt 0:00:01]} 51. Kxb5 {[%emt 0:00:02]} g5 {[%emt 0:00:05]} 52. g3 {[%emt 0:00:02]} h5 {[%emt 0:00:01]} 53. h3 {[%emt 0:00:01]} g4 {[%emt 0:00:21]} 54. hxg4 {[%emt 0:00:02]} f4 {[%emt 0:00:11]} 55. g5 {[%emt 0:00:45]} fxg3 {[%emt 0:00:07]} 56. g6 {[%emt 0:00:01]} g2 {[%emt 0:00:01]} 57. g7 {[%emt 0:00:01]} g1=Q {[%emt 0:00:03]} 58. g8=Q {[%emt 0:00:03]} Qxg8 {[%emt 0:00:02]} 59. b4 {[%emt 0:00:23]} Qf7 {[%emt 0:00:00]} 60. Kc5 {[%emt 0:00:04]} h4 {[%emt 0:00:01]} 61. b5 {[%emt 0:00:02]} h3 {[%emt 0:00:02]} 62. b6 {[%emt 0:00:04]} h2 {[%emt 0:00:01]} 63. Kb5 {[%emt 0:00:06]} h1=Q {[%emt 0:00:02]} 64. Ka5 {[%emt 0:00:15]} Qa1+ {[%emt 0:00:03]} 65. Kb5 {[%emt 0:00:03]} Qe5+ {[%emt 0:00:02]} 66. Kb4 {[%emt 0:00:02]} Qff4+ {[%emt 0:00:03]} 67. Kb3 {[%emt 0:00:04]} Qxf3+ {[%emt 0:00:02]} 68. Kc4 {[%emt 0:00:02]} Qed5+ {[%emt 0:00:04]} 69. Kb4 {[%emt 0:00:03]} Qfb3# {[%emt 0:00:01]} 0-1

[Event "DVM U10 2024"]
[Site "Duesseldorf"]
[Date "2024.12.27"]
[Round "3"]
[White "Schonlau, Leopold"]
[Black "Bauta, Luan"]
[Result "0-1"]
[ECO "C58"]
[WhiteElo "1533"]
[BlackElo "1063"]
[Annotator "NA RC"]
[PlyCount "146"]
[EventDate "2024.12.23"]
[EventType "team-tourn"]
[EventRounds "7"]
[EventCountry "GER"]
[SourceTitle "playchess.com"]
[Source "ChessBase"]
[SourceQuality "1"]
[TimeControl "3300+5"]

1. e4 {[%emt 0:00:03]} e5 {[%emt 0:00:04]} 2. Nf3 {[%emt 0:00:01]} Nc6 {[%emt 0:00:07]} 3. Bc4 {[%emt 0:00:06]} Nf6 {[%emt 0:00:06]} 4. Ng5 {[%emt 0:00:07]} d5 {[%emt 0:00:09]} 5. exd5 {[%emt 0:00:08]} Na5 {[%emt 0:00:08]} 6. Bb5+ {[%emt 0:00:07]} c6 {[%emt 0:00:06]} 7. dxc6 {[%emt 0:00:09]} bxc6 {[%emt 0:00:09]} 8. Bd3 {[%emt 0:00:05]} Bc5 {[%emt 0:00:44]} 9. O-O {[%emt 0:00:09]} h6 {[%emt 0:00:16]} 10. Ne4 {[%emt 0:00:35]} Nxe4 {[%emt 0:00:07]} 11. Bxe4 {[%emt 0:00:05]} O-O {[%emt 0:00:05]} 12. d3 {[%emt 0:00:36]} Qf6 {[%emt 0:00:53]} 13. Be3 {[%emt 0:00:20]} Bxe3 {[%emt 0:00:20]} 14. fxe3 {[%emt 0:00:22]} Qg5 {[%emt 0:00:23]} 15. Nc3 {[%emt 0:01:12]} Qxe3+ {[%emt 0:00:20]} 16. Kh1 {[%emt 0:00:15]} Ba6 {[%emt 0:00:45]} 17. Rf3 {[%emt 0:00:36]} Qg5 {[%emt 0:00:06]} 18. Rg3 {[%emt 0:00:16]} Qh4 {[%emt 0:00:59]} 19. Qe2 {[%emt 0:01:29]} Bc8 {[%emt 0:01:07]} 20. Rf1 {[%emt 0:00:38]} f5 {[%emt 0:01:35]} 21. Rgf3 {[%emt 0:01:00]} f4 {[%emt 0:01:05]} 22. g3 {[%emt 0:02:03]} Qh5 {[%emt 0:00:33]} 23. Qd2 {[%emt 0:02:01]} Bg4 {[%emt 0:01:13]} 24. R3f2 {[%emt 0:00:42]} fxg3 {[%emt 0:01:26]} 25. Rxf8+ {[%emt 0:00:49]} Rxf8 {[%emt 0:00:08]} 26. Rg1 {[%emt 0:01:23]} Bf3+ {[%emt 0:01:03]} 27. Bxf3 {[%emt 0:00:11]} Qxf3+ {[%emt 0:00:08]} 28. Qg2 {[%emt 0:00:18]} Qxg2+ {[%emt 0:00:16]} 29. Rxg2 {[%emt 0:00:08]} Rf1+ {[%emt 0:00:22]} 30. Rg1 {[%emt 0:00:08]} Rxg1+ {[%emt 0:00:21]} 31. Kxg1 {[%emt 0:00:06]} gxh2+ {[%emt 0:00:07]} 32. Kxh2 {[%emt 0:00:04]} Nb7 {[%emt 0:00:18]} 33. b4 {[%emt 0:00:08]} c5 {[%emt 0:00:19]} 34. bxc5 {[%emt 0:00:09]} Nxc5 {[%emt 0:00:07]} 35. a4 {[%emt 0:00:12]} a5 {[%emt 0:00:15]} 36. Ne2 {[%emt 0:00:18]} Nxa4 {[%emt 0:00:10]} 37. c4 {[%emt 0:00:24]} Nc5 {[%emt 0:00:12]} 38. d4 {[%emt 0:00:19]} exd4 {[%emt 0:00:11]} 39. Nxd4 {[%emt 0:00:07]} a4 {[%emt 0:00:12]} 40. Nc2 {[%emt 0:00:15]} Kf7 {[%emt 0:00:20]} 41. Kg3 {[%emt 0:00:08]} Kg6 {[%emt 0:00:32]} 42. Kh4 {[%emt 0:00:30]} Kf5 {[%emt 0:00:58]} 43. Na3 {[%emt 0:03:12]} Kf4 {[%emt 0:00:10]} 44. Nc2 {[%emt 0:00:28]} Kf3 {[%emt 0:01:24]} 45. Nd4+ {[%emt 0:00:50]} Kf4 {[%emt 0:00:37]} 46. Ne2+ {[%emt 0:00:21]} Kf5 {[%emt 0:00:24]} 47. Nd4+ {[%emt 0:00:20]} Kg6 {[%emt 0:00:12]} 48. Kg4 {[%emt 0:00:30]} a3 {[%emt 0:00:10]} 49. Nc2 {[%emt 0:00:29]} a2 {[%emt 0:00:07]} 50. Kg3 {[%emt 0:00:32]} Nb3 {[%emt 0:00:21]} 51. Kg4 {[%emt 0:00:13]} a1=Q {[%emt 0:00:20]} 52. Nxa1 {[%emt 0:00:10]} Nxa1 {[%emt 0:00:04]} 53. c5 {[%emt 0:00:05]} Nb3 {[%emt 0:00:36]} 54. c6 {[%emt 0:00:31]} h5+ {[%emt 0:01:26]} 55. Kg3 {[%emt 0:00:11]} Nc5 {[%emt 0:01:15]} 56. c7 {[%emt 0:00:16]} Ne4+ {[%emt 0:00:11]} 57. Kf4 {[%emt 0:00:05]} Nd6 {[%emt 0:00:05]} 58. Ke5 {[%emt 0:00:09]} Nc8 {[%emt 0:00:28]} 59. Kf4 {[%emt 0:00:07]} Kf6 {[%emt 0:00:18]} 60. Kg3 {[%emt 0:00:11]} g5 {[%emt 0:00:32]} 61. Kh3 {[%emt 0:00:05]} Ke5 {[%emt 0:00:14]} 62. Kg3 {[%emt 0:00:08]} Ke4 {[%emt 0:00:01]} 63. Kh3 {[%emt 0:00:09]} Kf3 {[%emt 0:00:38]} 64. Kh2 {[%emt 0:00:11]} g4 {[%emt 0:00:23]} 65. Kh1 {[%emt 0:00:12]} Kf2 {[%emt 0:00:35]} 66. Kh2 {[%emt 0:00:10]} g3+ {[%emt 0:00:03]} 67. Kh3 {[%emt 0:00:21]} g2 {[%emt 0:00:12]} 68. Kh4 {[%emt 0:00:07]} g1=Q {[%emt 0:00:20]} 69. Kxh5 {[%emt 0:00:02]} Kf3 {[%emt 0:00:21]} 70. Kh6 {[%emt 0:00:08]} Kf4 {[%emt 0:00:04]} 71. Kh7 {[%emt 0:00:02]} Kf5 {[%emt 0:00:14]} 72. Kh8 {[%emt 0:00:13]} Kf6 {[%emt 0:00:04]} 73. Kh7 {[%emt 0:00:05]} Qg7# {[%emt 0:00:12]} 0-1

[Event "DVM U10 2024"]
[Site "Duesseldorf"]
[Date "2024.12.27"]
[Round "3"]
[White "El-Issa, Erik"]
[Black "Karabetyan, Levon"]
[Result "1-0"]
[ECO "D02"]
[WhiteElo "1530"]
[BlackElo "1230"]
[Annotator "NA RC"]
[PlyCount "101"]
[EventDate "2024.12.23"]
[EventType "team-tourn"]
[EventRounds "7"]
[EventCountry "GER"]
[SourceTitle "playchess.com"]
[Source "ChessBase"]
[SourceQuality "1"]
[TimeControl "3300+5"]

1. d4 {[%emt 0:00:03]} d5 {[%emt 0:00:10]} 2. g3 {[%emt 0:00:07]} Nf6 {[%emt 0:00:15]} 3. Nf3 {[%emt 0:00:11]} Bf5 {[%emt 0:00:27]} 4. Bg2 {[%emt 0:00:10]} e6 {[%emt 0:00:30]} 5. O-O {[%emt 0:00:07]} h6 {[%emt 0:00:09]} 6. c4 {[%emt 0:00:11]} Be7 {[%emt 0:00:31]} 7. Nc3 {[%emt 0:00:10]} O-O {[%emt 0:00:32]} 8. Qb3 {[%emt 0:00:09]} b6 {[%emt 0:01:24]} 9. Nh4 {[%emt 0:00:49]} Be4 {[%emt 0:02:37]} 10. Nf3 {[%emt 0:01:11]} c5 {[%emt 0:02:24]} 11. dxc5 {[%emt 0:01:48]} Bxc5 {[%emt 0:00:35]} 12. Rd1 {[%emt 0:01:06]} Nc6 {[%emt 0:05:49]} 13. cxd5 {[%emt 0:01:11]} exd5 {[%emt 0:00:47]} 14. e3 {[%emt 0:00:57]} Ne7 {[%emt 0:01:44]} 15. Nxe4 {[%emt 0:02:08]} Nxe4 {[%emt 0:00:15]} 16. Nd2 {[%emt 0:00:34]} Nf6 {[%emt 0:01:13]} 17. Nf3 {[%emt 0:00:37]} Ne4 {[%emt 0:00:10]} 18. Bd2 {[%emt 0:00:51]} Rc8 {[%emt 0:01:44]} 19. Bc3 {[%emt 0:01:21]} Re8 {[%emt 0:01:39]} 20. Nd2 {[%emt 0:01:08]} Nxc3 {[%emt 0:03:19]} 21. bxc3 {[%emt 0:00:26]} Rc6 {[%emt 0:01:30]} 22. c4 {[%emt 0:03:08]} Rd6 {[%emt 0:01:26]} 23. cxd5 {[%emt 0:00:32]} Nxd5 {[%emt 0:00:46]} 24. Nc4 {[%emt 0:01:20]} Rd7 {[%emt 0:01:48]} 25. Nb2 {[%emt 0:01:38]} Nf6 {[%emt 0:01:57]} 26. Bc6 {[%emt 0:00:23]} Rxd1+ {[%emt 0:00:59]} 27. Rxd1 {[%emt 0:00:09]} Qc8 {[%emt 0:01:06]} 28. Bxe8 {[%emt 0:00:42]} Qxe8 {[%emt 0:00:12]} 29. Nd3 {[%emt 0:00:54]} Be7 {[%emt 0:02:17]} 30. Ne5 {[%emt 0:01:33]} Kf8 {[%emt 0:03:03]} 31. Qd3 {[%emt 0:02:43]} a5 {[%emt 0:00:00]} 32. Nd7+ {[%emt 0:00:20]} Nxd7 {[%emt 0:00:09]} 33. Qxd7 {[%emt 0:00:07]} Qxd7 {[%emt 0:00:00]} 34. Rxd7 {[%emt 0:00:11]} b5 {[%emt 0:00:12]} 35. Rb7 {[%emt 0:00:45]} b4 {[%emt 0:00:43]} 36. Rb8+ {[%emt 0:00:36]} Bd8 {[%emt 0:00:41]} 37. Rxd8+ {[%emt 0:00:00]} Ke7 {[%emt 0:00:02]} 38. Ra8 {[%emt 0:00:12]} f5 {[%emt 0:00:08]} 39. Rxa5 {[%emt 0:00:09]} g6 {[%emt 0:00:15]} 40. Rb5 {[%emt 0:00:12]} b3 {[%emt 0:00:06]} 41. Rxb3 {[%emt 0:00:10]} h5 {[%emt 0:00:03]} 42. a4 {[%emt 0:00:08]} g5 {[%emt 0:00:07]} 43. a5 {[%emt 0:00:11]} h4 {[%emt 0:00:12]} 44. a6 {[%emt 0:00:12]} hxg3 {[%emt 0:00:07]} 45. hxg3 {[%emt 0:00:08]} g4 {[%emt 0:00:05]} 46. a7 {[%emt 0:00:06]} f4 {[%emt 0:00:29]} 47. a8=Q {[%emt 0:00:33]} fxg3 48. fxg3 {[%emt 0:00:05]} Kd7 {[%emt 0:00:12]} 49. Qa6 {[%emt 0:00:05]} Ke7 {[%emt 0:00:05]} 50. Rb7+ {[%emt 0:00:05]} Kd8 {[%emt 0:00:05]} 51. Qa8# {[%emt 0:00:05]} 1-0

[Event "DVM U10 2024"]
[Site "Duesseldorf"]
[Date "2024.12.27"]
[Round "3"]
[White "Ragavendra Prasanna, Shyam Sundar"]
[Black "Städler, Jannis"]
[Result "1-0"]
[ECO "A41"]
[WhiteElo "1524"]
[BlackElo "1082"]
[Annotator "NA RC"]
[PlyCount "125"]
[EventDate "2024.12.23"]
[EventType "team-tourn"]
[EventRounds "7"]
[EventCountry "GER"]
[SourceTitle "playchess.com"]
[Source "ChessBase"]
[SourceQuality "1"]
[TimeControl "3300+5"]

1. d4 {[%emt 0:00:01]} d6 {[%emt 0:00:12]} 2. Bf4 {[%emt 0:00:07]} Nc6 {[%emt 0:00:09]} 3. e3 {[%emt 0:00:29]} e5 {[%emt 0:00:20]} 4. Bg3 {[%emt 0:00:20]} exd4 {[%emt 0:00:07]} 5. exd4 {[%emt 0:00:09]} Nf6 {[%emt 0:00:16]} 6. Nf3 {[%emt 0:00:28]} d5 {[%emt 0:00:07]} 7. c4 {[%emt 0:00:10]} Bb4+ {[%emt 0:00:21]} 8. Nbd2 {[%emt 0:00:19]} dxc4 {[%emt 0:00:23]} 9. Qe2+ {[%emt 0:00:34]} Ne7 {[%emt 0:00:26]} 10. Qxc4 {[%emt 0:00:27]} Bxd2+ {[%emt 0:00:21]} 11. Nxd2 {[%emt 0:00:10]} O-O {[%emt 0:00:14]} 12. Be2 {[%emt 0:00:15]} Be6 {[%emt 0:00:25]} 13. Qxc7 {[%emt 0:00:19]} Qxc7 {[%emt 0:00:15]} 14. Bxc7 {[%emt 0:00:10]} Rac8 {[%emt 0:00:06]} 15. Bd6 {[%emt 0:00:22]} Rfe8 {[%emt 0:00:09]} 16. O-O {[%emt 0:00:29]} Rc2 {[%emt 0:00:08]} 17. Rfd1 {[%emt 0:01:27]} Rxb2 {[%emt 0:00:13]} 18. a4 {[%emt 0:00:40]} Ned5 {[%emt 0:00:14]} 19. Bb5 {[%emt 0:00:31]} Rd8 {[%emt 0:00:21]} 20. Ba3 {[%emt 0:01:01]} Rc2 {[%emt 0:00:35]} 21. Rac1 {[%emt 0:00:33]} Ra2 {[%emt 0:00:31]} 22. Nb1 {[%emt 0:01:07]} Ne4 {[%emt 0:00:21]} 23. Rf1 {[%emt 0:00:49]} Ndc3 {[%emt 0:01:15]} 24. Nxc3 {[%emt 0:00:56]} Rxa3 {[%emt 0:00:44]} 25. Nxe4 {[%emt 0:00:28]} Rxd4 {[%emt 0:00:22]} 26. Ng5 {[%emt 0:00:34]} Rg4 {[%emt 0:01:14]} 27. Nxe6 {[%emt 0:00:41]} fxe6 {[%emt 0:00:13]} 28. Bc4 {[%emt 0:00:32]} Re4 {[%emt 0:00:31]} 29. Rfe1 {[%emt 0:00:42]} Rxe1+ {[%emt 0:00:40]} 30. Rxe1 {[%emt 0:00:27]} Rxa4 {[%emt 0:00:22]} 31. Bxe6+ {[%emt 0:00:12]} Kf8 {[%emt 0:00:03]} 32. h3 {[%emt 0:00:32]} b5 {[%emt 0:00:25]} 33. Bd7 {[%emt 0:00:15]} Rb4 {[%emt 0:00:26]} 34. Kh2 {[%emt 0:00:19]} Rb2 {[%emt 0:00:13]} 35. Ra1 {[%emt 0:00:16]} b4 {[%emt 0:00:28]} 36. Rxa7 {[%emt 0:00:19]} Rxf2 {[%emt 0:00:25]} 37. Be6 {[%emt 0:00:28]} g5 {[%emt 0:00:27]} 38. Rb7 {[%emt 0:00:09]} Rb2 {[%emt 0:00:16]} 39. Kg3 {[%emt 0:00:35]} h5 {[%emt 0:00:24]} 40. Bd5 {[%emt 0:00:14]} Rd2 {[%emt 0:00:34]} 41. Bc4 {[%emt 0:00:24]} h4+ {[%emt 0:00:19]} 42. Kh2 {[%emt 0:00:22]} Rb2 {[%emt 0:00:29]} 43. Kg1 {[%emt 0:00:19]} Rb1+ {[%emt 0:00:25]} 44. Kf2 {[%emt 0:00:11]} Rb2+ {[%emt 0:00:12]} 45. Ke1 {[%emt 0:00:19]} Rxg2 {[%emt 0:00:22]} 46. Rxb4 {[%emt 0:00:16]} Ke7 {[%emt 0:00:08]} 47. Bf1 {[%emt 0:00:17]} Rc2 {[%emt 0:00:28]} 48. Rg4 {[%emt 0:00:22]} Kf6 {[%emt 0:00:18]} 49. Bd3 {[%emt 0:01:07]} Rh2 {[%emt 0:00:20]} 50. Bf1 {[%emt 0:00:12]} Kf5 {[%emt 0:00:33]} 51. Bg2 {[%emt 0:00:29]} Kf6 {[%emt 0:01:10]} 52. Kf1 {[%emt 0:00:19]} Kf5 {[%emt 0:00:17]} 53. Kg1 {[%emt 0:00:04]} Rxg2+ {[%emt 0:00:14]} 54. Kxg2 {[%emt 0:00:09]} Kf6 {[%emt 0:00:14]} 55. Kf2 {[%emt 0:00:12]} Kf5 {[%emt 0:00:36]} 56. Kf3 {[%emt 0:00:05]} Kf6 {[%emt 0:00:17]} 57. Ke4 {[%emt 0:00:11]} Kg6 {[%emt 0:00:11]} 58. Ke5 {[%emt 0:00:09]} Kh5 {[%emt 0:00:17]} 59. Kf5 {[%emt 0:00:12]} Kh6 {[%emt 0:00:16]} 60. Rxg5 {[%emt 0:00:11]} Kh7 {[%emt 0:00:10]} 61. Kf6 {[%emt 0:00:25]} Kh8 {[%emt 0:00:12]} 62. Kf7 {[%emt 0:00:20]} Kh7 {[%emt 0:00:16]} 63. Rh5# {[%emt 0:00:07]} 1-0

[Event "DVM U10 2024"]
[Site "Duesseldorf"]
[Date "2024.12.27"]
[Round "3"]
[White "Bentele, Otto"]
[Black "Rogozhin, Georg"]
[Result "1-0"]
[ECO "C56"]
[WhiteElo "1522"]
[BlackElo "1232"]
[Annotator "NA RC"]
[PlyCount "87"]
[EventDate "2024.12.23"]
[EventType "team-tourn"]
[EventRounds "7"]
[EventCountry "GER"]
[SourceTitle "playchess.com"]
[Source "ChessBase"]
[SourceQuality "1"]
[TimeControl "3300+5"]

1. e4 {[%emt 0:00:03]} e5 {[%emt 0:00:03]} 2. Nf3 {[%emt 0:00:03]} Nc6 {[%emt 0:00:02]} 3. Bc4 {[%emt 0:00:07]} Bc5 {[%emt 0:00:05]} 4. c3 {[%emt 0:00:08]} Nf6 {[%emt 0:00:08]} 5. d4 {[%emt 0:00:07]} exd4 {[%emt 0:00:21]} 6. O-O {[%emt 0:00:03]} dxc3 {[%emt 0:00:12]} 7. e5 {[%emt 0:00:10]} cxb2 {[%emt 0:00:27]} 8. Bxb2 {[%emt 0:00:10]} d5 {[%emt 0:00:28]} 9. exf6 {[%emt 0:00:08]} dxc4 {[%emt 0:00:12]} 10. Re1+ {[%emt 0:00:06]} Be6 {[%emt 0:00:23]} 11. fxg7 {[%emt 0:00:21]} Rg8 {[%emt 0:00:23]} 12. Qxd8+ {[%emt 0:00:10]} Nxd8 {[%emt 0:00:12]} 13. Ng5 {[%emt 0:00:30]} h6 {[%emt 0:00:26]} 14. Nh7 {[%emt 0:00:11]} Nc6 {[%emt 0:00:47]} 15. Nf6+ {[%emt 0:00:25]} Ke7 {[%emt 0:00:32]} 16. Nxg8+ {[%emt 0:00:37]} Rxg8 {[%emt 0:00:07]} 17. Nc3 {[%emt 0:00:26]} Bd4 {[%emt 0:00:20]} 18. a3 {[%emt 0:01:21]} Kd6 {[%emt 0:00:20]} 19. Rad1 {[%emt 0:00:19]} Kc5 {[%emt 0:00:43]} 20. Ne4+ {[%emt 0:00:32]} Kd5 {[%emt 0:00:43]} 21. Bxd4 {[%emt 0:02:11]} Nxd4 {[%emt 0:00:16]} 22. Nf6+ {[%emt 0:00:10]} Kc5 {[%emt 0:00:40]} 23. Nxg8 {[%emt 0:00:24]} Nf5 {[%emt 0:00:14]} 24. Nf6 {[%emt 0:00:24]} Nxg7 {[%emt 0:00:09]} 25. Nd7+ {[%emt 0:00:28]} Kc6 {[%emt 0:00:29]} 26. Ne5+ {[%emt 0:00:10]} Kc5 {[%emt 0:00:06]} 27. Nf3 {[%emt 0:00:31]} Bg4 {[%emt 0:00:31]} 28. Re5+ {[%emt 0:00:29]} Kc6 {[%emt 0:00:19]} 29. Re4 {[%emt 0:00:00]} Bxf3 {[%emt 0:00:07]} 30. gxf3 {[%emt 0:00:09]} f5 {[%emt 0:00:25]} 31. Rxc4+ {[%emt 0:00:29]} Kb5 {[%emt 0:00:15]} 32. Rxc7 {[%emt 0:00:09]} Kb6 {[%emt 0:00:08]} 33. Rxg7 {[%emt 0:00:41]} Kc6 {[%emt 0:00:36]} 34. Rg6+ {[%emt 0:00:31]} Kc7 {[%emt 0:00:15]} 35. Rxh6 {[%emt 0:00:31]} b5 {[%emt 0:00:11]} 36. Rh5 {[%emt 0:00:32]} a5 {[%emt 0:00:15]} 37. Rxf5 {[%emt 0:00:35]} a4 {[%emt 0:00:03]} 38. Rxb5 {[%emt 0:00:37]} Kc6 {[%emt 0:00:22]} 39. Rg5 {[%emt 0:00:09]} Kb7 {[%emt 0:00:12]} 40. h4 {[%emt 0:00:11]} Kb6 {[%emt 0:00:16]} 41. Rd6+ {[%emt 0:00:09]} Kc7 {[%emt 0:00:08]} 42. Rh6 {[%emt 0:00:12]} Kd7 {[%emt 0:00:39]} 43. Rg7+ {[%emt 0:00:30]} Ke8 {[%emt 0:00:02]} 44. Rh8# {[%emt 0:00:42]} 1-0

[Event "DVM U10 2024"]
[Site "Duesseldorf"]
[Date "2024.12.27"]
[Round "3"]
[White "Pawlus, Daniel"]
[Black "Lankenau, Matteo Joel"]
[Result "1-0"]
[ECO "D24"]
[WhiteElo "1521"]
[BlackElo "1011"]
[Annotator "NA RC"]
[PlyCount "43"]
[EventDate "2024.12.23"]
[EventType "team-tourn"]
[EventRounds "7"]
[EventCountry "GER"]
[SourceTitle "playchess.com"]
[Source "ChessBase"]
[SourceQuality "1"]
[TimeControl "3300+5"]

1. d4 {[%emt 0:00:03]} d5 {[%emt 0:00:11]} 2. c4 {[%emt 0:00:02]} e6 {[%emt 0:00:13]} 3. Nc3 {[%emt 0:00:27]} Nf6 {[%emt 0:00:13]} 4. Nf3 {[%emt 0:00:33]} dxc4 {[%emt 0:00:13]} 5. e4 {[%emt 0:00:27]} Nc6 {[%emt 0:00:15]} 6. Bxc4 {[%emt 0:01:32]} Bd6 {[%emt 0:00:23]} 7. e5 {[%emt 0:00:44]} Na5 {[%emt 0:01:07]} 8. Bd3 {[%emt 0:01:38]} Nd5 {[%emt 0:01:10]} 9. Nxd5 {[%emt 0:00:57]} exd5 {[%emt 0:00:12]} 10. Qa4+ {[%emt 0:01:26]} Nc6 {[%emt 0:00:16]} 11. exd6 {[%emt 0:00:12]} Qxd6 {[%emt 0:00:26]} 12. Ne5 {[%emt 0:00:56]} Qe6 {[%emt 0:00:32]} 13. Bb5 {[%emt 0:01:24]} Bd7 {[%emt 0:00:29]} 14. O-O {[%emt 0:00:26]} O-O {[%emt 0:00:13]} 15. Nxd7 {[%emt 0:01:21]} Qxd7 {[%emt 0:00:11]} 16. Bf4 {[%emt 0:01:05]} a6 {[%emt 0:00:24]} 17. Bxc6 {[%emt 0:00:14]} bxc6 {[%emt 0:00:51]} 18. Rac1 {[%emt 0:01:50]} Qf5 {[%emt 0:00:48]} 19. Bxc7 {[%emt 0:00:33]} Qe6 {[%emt 0:01:40]} 20. Rxc6 {[%emt 0:00:31]} Qe7 {[%emt 0:00:57]} 21. Bd6 {[%emt 0:00:33]} Qe6 {[%emt 0:00:13]} 22. Bxf8 {[%emt 0:02:49]} 1-0

[Event "DVM U10 2024"]
[Site "Duesseldorf"]
[Date "2024.12.27"]
[Round "3"]
[White "Stopp, Bruno"]
[Black "von Gehlen, Elian"]
[Result "1/2-1/2"]
[ECO "B15"]
[WhiteElo "1519"]
[BlackElo "1464"]
[Annotator "NA RC"]
[PlyCount "61"]
[EventDate "2024.12.23"]
[EventType "team-tourn"]
[EventRounds "7"]
[EventCountry "GER"]
[SourceTitle "playchess.com"]
[Source "ChessBase"]
[SourceQuality "1"]
[TimeControl "3300+5"]

1. e4 {[%emt 0:00:03]} c6 {[%emt 0:00:06]} 2. d4 {[%emt 0:00:06]} d5 {[%emt 0:00:07]} 3. Nd2 {[%emt 0:01:15]} dxe4 {[%emt 0:00:09]} 4. Nxe4 {[%emt 0:00:08]} Nf6 {[%emt 0:00:11]} 5. Nxf6+ {[%emt 0:01:01]} exf6 {[%emt 0:00:09]} 6. Nf3 {[%emt 0:00:08]} Bd6 {[%emt 0:00:08]} 7. Bd3 {[%emt 0:01:59]} O-O {[%emt 0:00:14]} 8. O-O {[%emt 0:00:09]} Bg4 {[%emt 0:00:16]} 9. h3 {[%emt 0:00:37]} Bxf3 {[%emt 0:00:54]} 10. Qxf3 {[%emt 0:00:16]} Re8 {[%emt 0:00:29]} 11. Be3 {[%emt 0:00:32]} Nd7 {[%emt 0:00:31]} 12. Rfe1 {[%emt 0:01:11]} Nb6 {[%emt 0:00:44]} 13. Qh5 {[%emt 0:02:28]} g6 {[%emt 0:00:16]} 14. Qg4 {[%emt 0:03:40]} Nd5 {[%emt 0:01:18]} 15. Bh6 {[%emt 0:01:37]} Qa5 {[%emt 0:04:46]} 16. c3 {[%emt 0:00:56]} Rxe1+ {[%emt 0:00:13]} 17. Rxe1 {[%emt 0:00:33]} Qxa2 {[%emt 0:00:19]} 18. Qd7 {[%emt 0:01:50]} Bf8 {[%emt 0:01:23]} 19. Re8 {[%emt 0:01:10]} Nb6 {[%emt 0:01:19]} 20. Qe7 {[%emt 0:01:02]} Rxe8 {[%emt 0:00:10]} 21. Qxe8 {[%emt 0:00:09]} Nd7 {[%emt 0:00:03]} 22. Qxd7 {[%emt 0:04:24]} Qa1+ {[%emt 0:00:16]} 23. Kh2 {[%emt 0:02:03]} Bxh6 {[%emt 0:00:11]} 24. Bc4 {[%emt 0:00:44]} Bf4+ {[%emt 0:00:29]} 25. g3 {[%emt 0:00:10]} Bxg3+ {[%emt 0:00:08]} 26. fxg3 {[%emt 0:08:43]} Qxb2+ {[%emt 0:00:14]} 27. Kg1 {[%emt 0:00:09]} Qc1+ {[%emt 0:00:07]} 28. Kf2 {[%emt 0:00:11]} Qd2+ {[%emt 0:00:37]} 29. Be2 {[%emt 0:00:13]} Qxc3 {[%emt 0:00:13]} 30. g4 {[%emt 0:04:10]} Qxh3 {[%emt 0:00:25]} 31. Qxb7 {[%emt 0:00:32]} 1/2-1/2